bitfinex-derivatives/quotes_SOLF0:USTF0_20241206
["timestamp","ask_amount","ask_price","bid_price","bid_amount"]
[1733506220221,8.01690852,239.24,239.15,2.12]
[1733506220420,12.18906424,239.26,239.15,2.12]
[1733506220421,8.01690852,239.23,239.15,2.12]
[1733506220620,12.18906424,239.26,239.15,2.12]
[1733506220816,8.01583008,239.25,239.15,2.12]
[1733506221015,8.01583008,239.24,239.13,1.3052]
[1733506221214,8.01583008,239.23,239.13,1.3052]
[1733506221420,8.01583008,239.22,239.13,1.3052]
[1733506221617,10.13583008,239.21,239.06,2.09291]
[1733506221822,2.088,239.16,239.07,10.06906424]
[1733506222017,2.088,239.16,239.11,2.0884]
[1733506222621,2.12,239.2,239.09,2.0885]
[1733506222927,8.01481275,239.19,239.07,10.06906424]
[1733506223129,8.01481275,239.18,239.08,2.0887]
[1733506223428,8.01481275,239.17,239.08,2.0887]
[1733506223629,2.0882,239.14,239.08,2.0887]
[1733506223831,2.0882,239.14,239.07,10.06906424]
[1733506224024,2.0882,239.14,239.09,2.0886]
[1733506224921,2.0882,239.14,239.09,1.12286644]
[1733506225321,2.0883,239.13,239.09,1.12286644]
[1733506225526,12.18906424,239.2,239.07,12.18906424]
[1733506225728,8.01351276,239.19,239.07,2.12]
[1733506226025,2.0883,239.13,239.07,2.12]
[1733506228333,290.2145437,239.26,239.1,10.06906424]
[1733506228630,8.01379931,239.25,239.14,10.06906424]
[1733506228930,8.01379931,239.25,239.14,7.54974606]
[1733506229230,2.0877,239.2,239.14,7.54974606]
[1733506229730,2.0875,239.22,239.14,7.54974606]
[1733506229927,3.4782,239.28,239.14,7.54974606]
[1733506230129,8.01253444,239.27,239.14,7.54974606]
[1733506230327,8.01253444,239.26,239.14,7.54974606]
[1733506230530,8.01253444,239.25,239.14,7.54974606]
[1733506230728,8.01253444,239.24,239.14,7.54974606]
[1733506230925,8.01253444,239.23,239.14,7.54974606]
[1733506231132,8.01253444,239.22,239.14,7.54974606]
[1733506231333,2.12,239.27,239.14,7.54974606]
[1733506231634,8.01424348,239.26,239.14,7.54974606]
[1733506231823,2.0875,239.22,239.14,7.54974606]
[1733506232829,2.12,239.27,239.14,7.54974606]
[1733506232830,2.0876,239.21,239.14,7.54974606]
[1733506233230,2.12,239.27,239.14,7.54974606]
[1733506233429,8.01705712,239.26,239.14,7.54974606]
[1733506233731,8.01705712,239.25,239.14,7.54974606]
[1733506234033,2.0872,239.25,239.15,1.3739]
[1733506235535,1.257,239.29,239.15,1.3739]
[1733506235732,2.0873,239.24,239.15,1.3739]
[1733506237741,2.0875,239.22,239.15,1.3739]
[1733506238238,2.12,239.27,239.15,1.3739]
[1733506238539,8.0123437,239.26,239.14,7.54974606]
[1733506238736,8.0123437,239.26,239.14,2.12]
[1733506238935,2.0876,239.21,239.14,2.12]
[1733506239537,2.12,239.27,239.14,2.12]
[1733506239737,10.06906424,239.25,239.11,11.34806424]
[1733506239941,10.06906424,239.22,239.11,1.279]
[1733506240133,10.06906424,239.22,239.09,2.12]
[1733506240134,8.01408947,239.21,239.09,2.12]
[1733506240439,2.0883,239.13,239.09,2.12]
[1733506240829,2.0882,239.14,239.09,2.12]
[1733506242236,2.0884,239.12,239.06,1.3765]
[1733506242431,2.0884,239.12,239.06,2.12]
[1733506242735,2.12,239.17,239.06,2.12]
[1733506243036,8.02413131,239.16,239.06,2.12]
[1733506243233,8.02413131,239.15,239.02,10.06906424]
[1733506243439,8.02413131,239.14,239.03,2.12]
[1733506243738,8.02413131,239.13,239.03,2.12]
[1733506243935,360.7774524,239.44,239.08,10.06906424]
[1733506244240,10.06906424,239.24,239.09,2.12]
[1733506244430,2.0879,239.18,239.09,2.12]
[1733506244740,10.06906424,239.24,239.09,2.12]
[1733506244939,8.02797338,239.23,239.09,2.12]
[1733506245643,2.088,239.16,239.09,2.12]
[1733506245842,2.12,239.2,239.09,2.12]
[1733506246044,8.02884702,239.19,239.09,2.12]
[1733506246238,10.11674702,239.18,239.09,2.12]
[1733506246440,8.02884702,239.17,239.09,2.12]
[1733506247043,2.12,239.21,239.09,4.743]
[1733506247242,8.03170385,239.2,239.09,4.743]
[1733506247438,1.367,239.25,239.09,6.0667]
[1733506247439,8.03170385,239.19,239.09,6.0667]
[1733506247639,3.487,239.25,239.11,10.06906424]
[1733506247640,8.03170385,239.18,239.11,10.06906424]
[1733506247840,2.0875,239.22,239.11,10.06906424]
[1733506248041,8.03487832,239.21,239.11,10.06906424]
[1733506248238,3.487,239.25,239.09,6.0667]
[1733506248239,2.0878,239.19,239.09,6.0667]
[1733506248448,8.03487832,239.18,239.09,6.0667]
[1733506248642,2.0879,239.18,239.09,6.0667]
[1733506248947,8.03820671,239.17,239.09,6.0667]
[1733506249136,10.06906424,239.23,239.09,4.743]
[1733506249338,2.088,239.16,239.09,4.743]
[1733506249538,10.06906424,239.2,239.09,3.4061]
[1733506249843,10.06906424,239.17,239.06,2.12]
[1733506250043,10.16174963,239.16,239.06,2.12]
[1733506250342,8.04174963,239.15,239.06,2.12]
[1733506250750,2.0883,239.13,239.06,2.12]
[1733506251040,8.04174963,239.12,239.06,2.12]
[1733506251247,10.06906424,239.22,239.06,2.12]
[1733506251441,2.12,239.2,239.06,2.12]
[1733506251641,8.04703602,239.19,239.06,2.12]
[1733506252244,8.04703602,239.18,239.06,2.12]
[1733506252445,8.04703602,239.17,239.05,10.06906424]
[1733506252645,10.13503602,239.16,239.06,2.12]
[1733506252842,8.04703602,239.15,239.06,2.12]
[1733506253043,2.088,239.16,239.06,2.12]
[1733506253243,2.0879,239.18,239.08,10.06906424]
[1733506253543,8.05249943,239.17,239.08,10.06906424]
[1733506254143,2.0881,239.15,239.06,2.12]
[1733506254345,10.06906424,239.2,239.06,2.12]
[1733506254643,2.0883,239.13,239.01,2.5458]
[1733506254849,2.12,239.17,239.04,10.06906424]
[1733506255047,8.05586789,239.16,239.07,10.06906424]
[1733506255239,2.12,239.21,239.07,10.06906424]
[1733506255240,8.05586789,239.15,239.07,10.06906424]
[1733506255441,8.05586789,239.14,239.08,2.12]
[1733506255647,10.06906424,239.2,239.04,2.12]
[1733506255847,8.05885005,239.19,239.04,2.12]
[1733506256040,2.0883,239.13,239.04,2.12]
[1733506256948,2.12,239.16,239.04,2.12]
[1733506257242,2.0885,239.1,239.01,2.5458]
[1733506257646,10.06906424,239.14,239.01,2.5458]
[1733506257841,8.06074044,239.13,239.01,2.5458]
[1733506258047,8.06074044,239.12,239.01,1.2707]
[1733506258245,10.06906424,239.14,239.0,2.12]
[1733506258246,2.12,239.11,239.0,2.12]
[1733506258548,8.06074044,239.1,239.0,2.12]
[1733506258743,2.0889,239.06,238.99,0.51986]
[1733506258953,8.05936318,239.05,238.99,0.51986]
[1733506259246,8.06008353,239.04,238.99,0.51986]
[1733506259553,8.06008353,239.03,238.99,0.51986]
[1733506259738,10.06906424,239.05,238.89,10.06906424]
[1733506259739,10.18008353,239.02,238.89,10.06906424]
[1733506259943,8.06008353,239.01,238.89,10.06906424]
[1733506260139,8.06008353,239.0,238.88,2.12]
[1733506260437,18.12914777,238.99,238.87,1.3564]
[1733506260639,10.06906424,238.96,238.82,10.06906424]
[1733506260839,10.18008353,238.95,238.82,10.06906424]
[1733506261038,8.06008353,238.94,238.8,3.4769]
[1733506261240,8.06008353,238.94,238.82,10.06906424]
[1733506261444,2.12,238.94,238.8,3.4769]
[1733506261646,2.0903,238.9,238.8,13.54596424]
[1733506261840,2.12,238.94,238.8,13.54596424]
[1733506262044,8.05040858,238.93,238.8,13.54596424]
[1733506262245,8.05040858,238.92,238.8,1.3569]
[1733506262947,2.0904,238.89,238.8,1.3569]
[1733506263149,10.06906424,238.93,238.78,2.12]
[1733506263351,11.41862993,238.92,238.78,2.12]
[1733506263547,2.0904,238.89,238.78,2.12]
[1733506263750,3.3749,238.92,238.78,2.12]
[1733506263944,8.03477962,238.91,238.8,10.06906424]
[1733506264149,2.12,238.94,238.83,10.06906424]
[1733506264354,2.12,238.94,238.83,12.18906424]
[1733506264652,2.0899,238.94,238.83,12.18906424]
[1733506264849,1.2549,239.03,238.83,12.18906424]
[1733506264850,2.12,238.95,238.83,12.18906424]
[1733506265943,10.06906424,238.93,238.77,1.3519]
[1733506266148,10.06906424,238.93,238.78,2.12]
[1733506266443,2.0905,238.87,238.78,2.12]
[1733506266847,2.14,238.89,238.77,1.3519]
[1733506267057,2.0908,238.84,238.75,1.3222]
[1733506267250,2.14,238.89,238.75,1.3222]
[1733506267751,2.0907,238.85,238.75,1.3222]
[1733506267947,2.14,238.89,238.75,1.3222]
[1733506268153,2.14,238.89,238.74,12.16339279]
[1733506268349,2.0908,238.84,238.74,12.16339279]
[1733506269753,2.6983,238.92,238.74,12.16339279]
[1733506269953,2.6983,238.92,238.8,10.06906424]
[1733506270145,4.8383,238.92,238.8,10.06906424]
[1733506270953,2.0902,238.91,238.8,10.06906424]
[1733506271648,2.0903,238.9,238.8,10.06906424]
[1733506272556,2.0904,238.89,238.79,2.14]
[1733506272751,3.4964,238.92,238.79,2.14]
[1733506273055,3.4964,238.92,238.8,2.6176]
[1733506273446,1.3564,238.92,238.8,2.6176]
[1733506273650,2.0902,238.91,238.8,12.68666424]
[1733506275759,1.3564,238.92,238.8,12.68666424]
[1733506275956,2.0903,238.9,238.8,12.68666424]
[1733506276855,2.0903,238.9,238.81,2.14]
[1733506277357,2.0902,238.91,238.81,2.14]
[1733506277657,1.3564,238.92,238.81,2.14]
[1733506277853,2.0903,238.9,238.81,2.14]
[1733506278653,1.3564,238.92,238.81,2.14]
[1733506280258,2.0905,238.87,238.81,2.14]
[1733506280462,10.06906424,238.91,238.8,2.6176]
[1733506281059,2.0906,238.86,238.8,2.6176]
[1733506282264,2.0905,238.87,238.8,2.6176]
[1733506283268,2.0906,238.86,238.78,2.14]
[1733506283464,10.06906424,238.91,238.78,2.14]
[1733506283665,2.0908,238.85,238.77,10.06906424]
[1733506283864,2.14,238.87,238.75,2.6679]
[1733506284165,2.14,238.87,238.75,1.3401]
[1733506284468,10.06906424,238.82,238.7,2.14]
[1733506284662,2.14,238.81,238.68,12.20906424]
[1733506285062,10.06906424,238.79,238.64,2.14]
[1733506285264,10.06906424,238.79,238.63,12.20906424]
[1733506285666,10.06906424,238.79,238.55,1.3566]
[1733506285865,2.6641,238.8,238.6,10.06906424]
[1733506285866,10.06906424,238.76,238.6,10.06906424]
[1733506286066,2.14,238.75,238.6,10.06906424]
[1733506286967,10.06906424,238.76,238.63,10.06906424]
[1733506287161,2.14,238.75,238.63,10.06906424]
[1733506287464,10.06906424,238.76,238.63,10.06906424]
[1733506287465,2.14,238.76,238.64,2.14]
[1733506287965,2.0916,238.75,238.64,2.14]
[1733506288767,2.0915,238.76,238.66,10.06906424]
[1733506288968,10.06906424,238.87,238.67,1.3327]
[1733506289173,2.14,238.86,238.75,10.06906424]
[1733506290070,2.0907,238.85,238.75,10.06906424]
[1733506290471,2.14,238.86,238.75,11.33466424]
[1733506291365,2.0908,238.84,238.75,11.33466424]
[1733506291564,1.3869,238.88,238.75,11.33466424]
[1733506291565,2.14,238.87,238.75,11.33466424]
[1733506292476,2.0908,238.84,238.75,11.33466424]
[1733506292675,1.3869,238.88,238.75,11.33466424]
[1733506292875,2.0905,238.87,238.75,11.33466424]
[1733506293069,1.3869,238.88,238.75,11.33466424]
[1733506293476,2.0907,238.86,238.75,11.33466424]
[1733506293769,2.0907,238.86,238.75,12.68376424]
[1733506293969,1.3869,238.88,238.75,12.68376424]
[1733506294582,2.0921,238.69,238.62,2.57128301]
[1733506294769,2.14,238.71,238.57,10.06906424]
[1733506295367,2.0921,238.69,238.58,2.14]
[1733506295568,2.0921,238.69,238.59,2.14]
[1733506297074,4.1165,238.76,238.61,10.06906424]
[1733506297269,2.14,238.75,238.61,10.06906424]
[1733506297866,2.0917,238.74,238.61,10.06906424]
[1733506298270,3.5214,238.76,238.61,10.06906424]
[1733506298473,3.5214,238.76,238.61,2.14]
[1733506298669,10.06906424,238.73,238.61,2.14]
[1733506298869,2.0923,238.67,238.61,2.14]
[1733506299073,2.14,238.7,238.61,2.14]
[1733506300176,2.0923,238.68,238.61,2.14]
[1733506300967,2.092,238.71,238.61,2.14]
[1733506302378,2.092,238.7,238.61,2.14]
[1733506302580,12.20906424,238.73,238.61,2.14]
[1733506302974,2.0922,238.68,238.61,2.14]
[1733506303174,12.20906424,238.73,238.5,4.2602522]
[1733506303378,12.20906424,238.73,238.55,10.06906424]
[1733506303679,12.20906424,238.73,238.56,2.18]
[1733506303680,10.06906424,238.7,238.56,2.18]
[1733506303880,10.06906424,238.7,238.55,10.06906424]
[1733506304081,10.06906424,238.7,238.56,2.18]
[1733506304481,10.06906424,238.7,238.52,10.06906424]
[1733506304482,10.06906424,238.7,238.54,2.18]
[1733506304676,10.06906424,238.7,238.52,10.06906424]
[1733506304883,10.06906424,238.7,238.54,2.18]
[1733506305572,2.093,238.6,238.54,2.18]
[1733506305780,2.18,238.64,238.54,2.18]
[1733506306384,2.18,238.66,238.55,10.06906424]
[1733506306577,2.18,238.67,238.55,10.06906424]
[1733506306782,2.0923,238.68,238.55,10.06906424]
[1733506307085,12.24906424,238.7,238.55,10.06906424]
[1733506307283,2.0922,238.69,238.55,10.06906424]
[1733506307585,2.0922,238.69,238.56,1.0470546]
[1733506307787,2.18,238.71,238.58,10.06906424]
[1733506307980,2.18,238.71,238.59,2.18]
[1733506308883,2.18,238.74,238.61,10.06906424]
[1733506309180,2.18,238.74,238.62,3.9502]
[1733506310382,2.0917,238.75,238.62,3.9502]
[1733506311289,2.18,238.77,238.62,3.9502]
[1733506311786,4.2714,238.77,238.62,3.9502]
[1733506312686,2.0915,238.76,238.62,3.9502]
[1733506313389,2.0915,238.76,238.64,10.06906424]
[1733506313588,2.0915,238.76,238.65,2.18]
[1733506313888,2.0914,238.78,238.65,2.18]
[1733506315585,2.0914,238.77,238.65,2.18]
[1733506315791,10.06906424,238.79,238.65,2.18]
[1733506316588,2.0913,238.78,238.65,2.18]
[1733506316785,10.06906424,238.79,238.65,2.18]
[1733506317788,10.06906424,238.79,238.64,2.18]
[1733506318686,2.0917,238.75,238.64,2.18]
[1733506320084,10.06906424,238.79,238.64,2.18]
[1733506320289,8.03691086,238.78,238.64,12.24906424]
[1733506320487,8.03691086,238.77,238.64,12.24906424]
[1733506320687,8.03691086,238.76,238.64,12.24906424]
[1733506320882,2.18,238.8,238.64,12.24906424]
[1733506321087,8.03823079,238.79,238.67,10.06906424]
[1733506321292,8.03823079,238.78,238.67,10.06906424]
[1733506321488,2.18,238.81,238.67,10.06906424]
[1733506321789,8.04005638,238.8,238.67,10.06906424]
[1733506322183,8.04005638,238.8,238.64,2.18]
[1733506322184,8.04005638,238.79,238.7,10.06906424]
[1733506322384,2.0911,238.81,238.71,2.18]
[1733506322581,8.0422004,238.8,238.71,2.18]
[1733506322781,8.0422004,238.79,238.67,2.18]
[1733506322986,10.1335004,238.78,238.67,2.18]
[1733506323188,8.0422004,238.77,238.69,10.06906424]
[1733506323392,2.18,238.83,238.69,10.06906424]
[1733506323584,8.04527207,238.82,238.72,10.06906424]
[1733506323790,1.2622,238.85,238.72,12.24906424]
[1733506323791,8.04527207,238.81,238.72,12.24906424]
[1733506323985,8.04527207,238.8,238.72,12.24906424]
[1733506324187,2.0909,238.83,238.72,12.24906424]
[1733506324394,8.04795192,238.82,238.72,12.24906424]
[1733506324589,8.04795192,238.81,238.72,12.24906424]
[1733506324890,8.04795192,238.8,238.72,12.24906424]
[1733506325188,3.4422,238.85,238.72,12.24906424]
[1733506325386,8.04789933,238.79,238.72,2.18]
[1733506325587,2.0911,238.8,238.72,2.18]
[1733506325792,8.04789933,238.79,238.72,2.18]
[1733506326395,2.0913,238.78,238.66,10.06906424]
[1733506326587,8.04789933,238.77,238.7,2.18]
[1733506326787,2.18,238.8,238.7,2.18]
[1733506326982,2.0913,238.78,238.7,2.18]
[1733506327683,2.0913,238.79,238.7,2.18]
[1733506327888,8.05733618,238.78,238.7,2.18]
[1733506328091,2.18,238.8,238.7,2.18]
[1733506328391,8.0568485,238.79,238.7,2.18]
[1733506328586,2.18,238.84,238.7,2.18]
[1733506328587,2.091,238.82,238.7,2.18]
[1733506328787,8.05893167,238.81,238.7,2.18]
[1733506328993,8.05893167,238.8,238.7,2.18]
[1733506329195,2.0911,238.81,238.7,2.18]
[1733506329493,8.05986362,238.8,238.7,2.18]
[1733506329795,2.0912,238.8,238.7,2.18]
[1733506330195,2.18,238.83,238.7,2.18]
[1733506330488,8.05984611,238.82,238.72,10.06906424]
[1733506330693,10.06906424,238.88,238.72,10.06906424]
[1733506330888,8.05891279,238.87,238.75,10.06906424]
[1733506331097,8.05891279,238.86,238.76,2.18]
[1733506331287,8.05891279,238.85,238.76,2.18]
[1733506331486,8.05891279,238.84,238.76,2.18]
[1733506331684,2.0907,238.85,238.76,2.18]
[1733506331887,8.05671973,238.84,238.76,2.18]
[1733506332090,3.4682,238.89,238.76,2.18]
[1733506332290,2.0906,238.86,238.75,10.06906424]
[1733506332490,2.0906,238.86,238.76,2.18]
[1733506332793,8.05663508,238.85,238.76,2.18]
[1733506333096,2.0906,238.86,238.76,2.18]
[1733506333291,8.05515098,238.85,238.76,2.18]
[1733506333486,2.0906,238.86,238.76,2.18]
[1733506334191,8.05264221,238.85,238.76,2.18]
[1733506334392,8.05264221,238.84,238.76,2.18]
[1733506334593,8.05264221,238.83,238.76,2.18]
[1733506334893,8.05264221,238.82,238.76,2.18]
[1733506335094,8.05264221,238.81,238.76,2.18]
[1733506335296,2.0906,238.86,238.76,2.18]
[1733506335493,8.0506619,238.85,238.76,2.18]
[1733506335793,2.0906,238.86,238.76,2.18]
[1733506335794,8.0506619,238.84,238.76,2.18]
[1733506335985,8.0506619,238.83,238.76,2.18]
[1733506336186,8.0506619,238.82,238.76,2.18]
[1733506336387,2.0905,238.87,238.76,2.18]
[1733506336588,8.0498659,238.86,238.78,10.06906424]
[1733506336787,8.0498659,238.85,238.78,10.06906424]
[1733506337198,5.5186,238.89,238.78,10.06906424]
[1733506337694,3.3786,238.89,238.78,10.06906424]
[1733506338095,8.04978471,238.88,238.78,10.06906424]
[1733506338291,8.04978471,238.87,238.78,10.06906424]
[1733506338492,8.04978471,238.86,238.76,2.18]
[1733506338696,8.04978471,238.85,238.76,12.24906424]
[1733506338996,8.04978471,238.84,238.76,12.24906424]
[1733506339398,8.04978471,238.83,238.76,12.24906424]
[1733506339591,2.0905,238.87,238.76,12.24906424]
[1733506339793,8.04600819,238.86,238.76,12.24906424]
[1733506339997,8.04600819,238.85,238.76,12.24906424]
[1733506340198,8.04600819,238.84,238.76,12.24906424]
[1733506340393,2.0905,238.87,238.76,12.24906424]
[1733506340592,8.04439231,238.86,238.76,12.24906424]
[1733506340792,2.0905,238.87,238.76,12.24906424]
[1733506340793,8.04439231,238.85,238.76,12.24906424]
[1733506340990,8.04439231,238.84,238.76,12.24906424]
[1733506341193,3.3786,238.89,238.76,12.24906424]
[1733506341395,8.04316101,238.88,238.79,10.06906424]
[1733506341600,8.04316101,238.87,238.79,10.06906424]
[1733506341895,3.3786,238.89,238.79,10.06906424]
[1733506341896,1.2882,238.89,238.79,10.06906424]
[1733506342092,8.04315056,238.88,238.79,10.06906424]
[1733506342297,1.2882,238.89,238.79,10.06906424]
[1733506342898,4.8128,238.93,238.79,10.06906424]
[1733506343196,8.04084547,238.92,238.79,10.06906424]
[1733506343497,8.04084547,238.91,238.79,10.06906424]
[1733506343800,10.13114547,238.9,238.79,10.06906424]
[1733506344000,2.0903,238.9,238.79,10.06906424]
[1733506344799,2.0905,238.87,238.76,2.18]
[1733506345098,2.6728,238.93,238.76,12.24906424]
[1733506345294,8.03869805,238.92,238.76,12.24906424]
[1733506345494,8.03869805,238.91,238.76,12.24906424]
[1733506345690,2.6728,238.93,238.76,12.24906424]
[1733506345691,2.0904,238.89,238.76,12.24906424]
[1733506345902,10.06906424,238.91,238.76,2.18]
[1733506346096,2.0907,238.85,238.73,3.785]
[1733506346301,10.06906424,238.88,238.74,2.14]
[1733506346497,8.03990309,238.87,238.74,2.14]
[1733506346696,8.04053092,238.86,238.74,2.14]
[1733506346893,10.06906424,238.88,238.74,2.14]
[1733506347096,8.04070522,238.87,238.74,2.14]
[1733506347292,8.04070522,238.86,238.73,3.785]
[1733506347493,18.10976946,238.85,238.74,2.14]
[1733506347801,10.18070522,238.84,238.74,2.14]
[1733506348103,8.04070522,238.83,238.69,10.06906424]
[1733506348300,2.091,238.82,238.7,2.14]
[1733506348598,3.4601,238.87,238.75,10.06906424]
[1733506348800,8.04418227,238.86,238.75,12.20906424]
[1733506349097,10.13488227,238.85,238.75,12.20906424]
[1733506349299,8.04418227,238.84,238.75,12.20906424]
[1733506349597,8.04418227,238.83,238.75,12.20906424]
[1733506349803,8.04418227,238.82,238.75,12.20906424]
[1733506349999,2.0907,238.85,238.75,12.20906424]
[1733506350199,8.04653825,238.84,238.75,12.20906424]
[1733506350404,8.04653825,238.83,238.75,12.20906424]
[1733506350695,8.04653825,238.82,238.77,6.4611055]
[1733506350895,8.04653825,238.82,238.75,2.14]
[1733506350896,8.04653825,238.82,238.79,6.4611055]
[1733506351099,8.04653825,238.86,238.79,6.4611055]
[1733506351299,8.04890513,238.85,238.79,6.4611055]
[1733506351495,8.04890513,238.84,238.81,6.4611055]
[1733506351799,2.14,238.91,238.83,6.4611055]
[1733506352006,8.05255664,238.9,238.85,6.4611055]
[1733506352203,8.05255664,238.89,238.87,6.4611055]
[1733506352502,8.05255664,238.88,238.87,6.4611055]
[1733506353005,1.3129,238.97,238.87,6.4611055]
[1733506353199,8.05191695,238.96,238.89,6.4611055]
[1733506353402,8.05191695,238.95,238.91,6.4611055]
[1733506353598,8.05191695,238.94,238.91,6.4611055]
[1733506353805,8.5507055,238.98,238.91,6.4611055]
[1733506353806,8.05191695,238.93,238.91,6.4611055]
[1733506354006,0.89372,239.0,238.93,6.4611055]
[1733506354317,8.05008478,238.99,238.95,6.4611055]
[1733506354603,0.89372,239.0,238.92,10.07998833]
[1733506354604,8.05008478,238.98,238.92,10.07998833]
[1733506354800,0.89372,239.0,238.92,10.07998833]
[1733506354801,8.05008478,238.97,238.92,10.07998833]
[1733506355005,0.89372,239.0,238.92,10.07998833]
[1733506355306,2.0896,238.98,238.91,2.14]
[1733506355607,8.04565252,238.97,238.91,2.14]
[1733506355899,8.04565252,238.96,238.91,2.14]
[1733506356105,8.04565252,238.95,238.91,2.14]
[1733506356305,8.04565252,238.94,238.91,2.14]
[1733506356498,2.0896,238.98,238.91,2.14]
[1733506356808,8.04093979,238.97,238.91,2.14]
[1733506357109,0.89372,239.0,238.91,2.14]
[1733506357309,10.13021093,238.99,238.91,2.14]
[1733506357507,8.04071093,238.98,238.91,2.14]
[1733506357801,8.03814604,238.97,238.91,2.14]
[1733506358107,8.03856734,238.96,238.88,2.14]
[1733506358306,8.03856734,238.95,238.87,4.7788]
[1733506358501,2.14,238.99,238.87,4.7788]
[1733506358703,8.0382283,238.98,238.87,4.7788]
[1733506358907,8.0382283,238.97,238.87,4.7788]
[1733506359203,8.0382283,238.96,238.87,4.7788]
[1733506359403,8.0382283,238.98,238.87,4.7788]
[1733506359709,2.0898,238.95,238.87,4.7788]
[1733506360099,2.0899,238.94,238.87,4.7788]
[1733506360300,2.14,238.99,238.87,2.14]
[1733506360502,10.07998833,238.97,238.87,2.14]
[1733506360700,8.03727254,238.96,238.87,2.14]
[1733506361305,8.03727254,238.96,238.83,2.14]
[1733506361506,9.39397254,238.96,238.83,2.14]
[1733506361706,8.03727254,238.95,238.83,2.14]
[1733506362806,2.0901,238.92,238.83,2.14]
[1733506363106,8.03727254,238.91,238.81,1.3028]
[1733506363305,8.03727254,238.9,238.81,2.14]
[1733506363604,12.21998833,238.94,238.81,2.14]
[1733506363605,8.03727254,238.89,238.81,2.14]
[1733506363803,12.21998833,238.94,238.81,2.14]
[1733506364010,8.043222,238.93,238.8,10.07998833]
[1733506364309,8.043222,238.92,238.8,10.07998833]
[1733506364505,2.0906,238.86,238.8,2.14]
[1733506364704,12.21998833,238.94,238.8,2.14]
[1733506364910,8.04575574,238.93,238.8,2.14]
[1733506365210,2.0907,238.85,238.8,2.14]
[1733506365404,10.07998833,238.91,238.77,10.07998833]
[1733506365604,8.04631008,238.9,238.77,10.07998833]
[1733506365911,10.18631008,238.89,238.77,12.21998833]
[1733506366111,2.14,238.89,238.77,12.21998833]
[1733506366812,2.0906,238.87,238.77,12.21998833]
[1733506367011,2.14,238.89,238.77,12.21998833]
[1733506367908,2.0907,238.86,238.77,12.21998833]
[1733506369717,2.0905,238.88,238.77,12.21998833]
[1733506370313,2.14,238.89,238.77,12.21998833]
[1733506370517,8.05398658,238.88,238.77,12.21998833]
[1733506370716,2.0904,238.88,238.77,12.21998833]
[1733506371115,8.05401423,238.87,238.77,12.21998833]
[1733506371414,2.0904,238.88,238.77,12.21998833]
[1733506371616,8.05553127,238.87,238.77,12.21998833]
[1733506371815,2.0904,238.88,238.77,12.21998833]
[1733506372011,8.0556201,238.87,238.77,12.21998833]
[1733506372316,2.0903,238.89,238.77,12.21998833]
[1733506372519,8.05827309,238.88,238.77,12.21998833]
[1733506372713,8.05827309,238.87,238.77,12.21998833]
[1733506372920,2.0903,238.89,238.77,12.21998833]
[1733506373116,8.05826967,238.88,238.77,12.21998833]
[1733506373313,2.0903,238.89,238.77,12.21998833]
[1733506373314,8.05826967,238.87,238.77,12.21998833]
[1733506373517,2.0903,238.89,238.77,12.21998833]
[1733506373717,8.06124076,238.88,238.77,12.21998833]
[1733506373917,8.06124076,238.87,238.77,12.21998833]
[1733506374120,8.06124076,238.86,238.77,12.21998833]
[1733506374313,2.0903,238.89,238.77,12.21998833]
[1733506374625,8.06358643,238.88,238.81,6.45888912]
[1733506374825,8.06358643,238.87,238.81,6.45888912]
[1733506375022,8.06358643,238.86,238.81,6.45888912]
[1733506375223,8.06358643,238.85,238.81,6.45888912]
[1733506375421,2.0907,238.86,238.81,6.45888912]
[1733506375618,8.06671789,238.85,238.81,6.45888912]
[1733506375817,2.0907,238.86,238.81,6.45888912]
[1733506376122,8.06662893,238.85,238.81,6.45888912]
[1733506376322,2.0907,238.86,238.81,6.45888912]
[1733506376521,8.06751207,238.85,238.81,6.45888912]
[1733506376722,2.0907,238.86,238.81,6.45888912]